fUST/lending_fUST_20250119
["ID","MTS","AMOUNT","RATE_DAILY","PERIOD"]
[349502040,1737227437266,-1158.01,0.00022191,3]
[349502041,1737227437275,-500.0,0.00022191,3]
[349502042,1737227437286,-500.0,0.00022191,3]
[349502043,1737227437295,-500.0,0.00022191,3]
[349502044,1737227437304,-500.0,0.00022191,3]
[349502045,1737227437314,-500.0,0.00022191,3]
[349502046,1737227437323,-500.0,0.00022191,3]
[349502047,1737227437332,-500.0,0.00022191,3]
[349502048,1737227437342,-500.0,0.00022191,3]
[349502049,1737227437351,-504.55,0.00022191,3]
[349502050,1737227437361,-500.0,0.00022191,3]
[349502051,1737227437371,-500.0,0.00022191,3]
[349502052,1737227437381,-500.0,0.00022191,3]
[349502053,1737227437391,-500.0,0.00022191,3]
[349502054,1737227437400,-500.0,0.00022191,3]
[349502055,1737227437410,-500.0,0.00022191,3]
[349502056,1737227437420,-500.0,0.00022191,3]
[349502057,1737227437430,-500.0,0.00022191,3]
[349502058,1737227437440,-3246.54,0.00022191,3]
[349502059,1737227437450,-500.0,0.00022191,3]
[349502060,1737227437459,-500.0,0.00022191,3]
[349502061,1737227437469,-500.00635,0.00022191,3]
[349502062,1737227437480,-627.12700551,0.00022191,3]
[349502063,1737227437490,-500.0,0.00022191,3]
[349502064,1737227437500,-500.0,0.00022191,3]
[349502065,1737227437510,-500.0,0.00022191,3]
[349502066,1737227437520,-500.0,0.00022191,3]
[349502067,1737227437530,-618.60547982,0.00022191,3]
[349502068,1737227437540,-215.46,0.00022191,3]
[349502069,1737227437550,-500.0,0.00022191,3]
[349502070,1737227437560,-500.0,0.00022191,3]
[349502071,1737227437570,-500.0,0.00022191,3]
[349502072,1737227437579,-500.0,0.00022191,3]
[349502073,1737227437588,-500.0,0.00022191,3]
[349502074,1737227437598,-500.0,0.00022198,2]
[349502075,1737227437608,-416.56135283,0.000222,2]
[349502076,1737227437618,-320.14480378,0.0002221,3]
[349502077,1737227437627,-2730.0,0.00022215,4]
[349502078,1737227437638,-150.0,0.000223,2]
[349502079,1737227437647,-320.14480378,0.00022314,3]
[349502080,1737227437656,-500.0,0.00022328,3]
[349502081,1737227437666,-332.88,0.00022328,3]
[349502082,1737227437675,-500.0,0.00022328,3]
[349502083,1737227437684,-500.0,0.00022328,3]
[349502084,1737227437694,-500.0,0.00022328,3]
[349502085,1737227437703,-500.0,0.00022328,3]
[349502086,1737227437712,-500.0,0.00022328,3]
[349502087,1737227437722,-500.0,0.00022328,3]
[349502088,1737227437731,-500.0,0.00022328,3]
[349502089,1737227437741,-12.95107034,0.00022328,3]
[349502090,1737227437760,-487.04892966,0.00022328,3]
[349502091,1737227437769,-500.0,0.00022328,3]
[349502092,1737227437780,-27.23636003,0.00022328,3]
[349502093,1737227437797,-596.32050846,0.00022191,3]
[349502094,1737227437807,-472.76363997,0.00022328,3]
[349502095,1737227437817,-500.0,0.00022328,3]
[349502096,1737227437827,-500.0,0.00022328,3]
[349502097,1737227437836,-553.57661299,0.00022328,3]
[349502098,1737227437845,-500.0,0.00022328,3]
[349502099,1737227437855,-500.0,0.00022328,3]
[349502100,1737227437864,-500.0,0.00022328,3]
[349502101,1737227437873,-500.0,0.00022328,3]
[349502102,1737227437884,-500.0,0.00022328,3]
[349502103,1737227437893,-500.0,0.00022328,3]
[349502104,1737227437901,-500.0,0.00022328,3]
[349502105,1737227437911,-1158.01,0.00022328,3]
[349502106,1737227437921,-538.76,0.00022328,3]
[349502107,1737227437930,-500.0,0.00022328,3]
[349502108,1737227437939,-500.0,0.00022328,3]
[349502109,1737227437948,-504.55,0.00022328,3]
[349502110,1737227437958,-500.0,0.00022328,3]
[349502111,1737227437966,-500.0,0.00022328,3]
[349502112,1737227437977,-3246.54,0.00022328,3]
[349502113,1737227437986,-500.0,0.00022328,3]
[349502114,1737227437996,-500.0,0.00022328,3]
[349502115,1737227438006,-500.0,0.00022328,3]
[349502116,1737227438018,-500.0,0.00022328,3]
[349502117,1737227438029,-500.0,0.00022328,3]
[349502118,1737227438039,-500.0,0.00022328,3]
[349502119,1737227438049,-500.0,0.00022328,3]
[349502120,1737227438060,-500.0,0.00022328,3]
[349502121,1737227438069,-343.17,0.00022328,3]
[349502122,1737227438079,-500.0,0.00022372,2]
[349502123,1737227438089,-420.0,0.00022409,2]
[349502124,1737227438101,-320.14480378,0.00022417,3]
[349502125,1737227438111,-1840.16280597,0.00022455,2]
[349502126,1737227438121,-403.44,0.00022465,3]
[349502128,1737227438131,-500.0,0.00022465,3]
[349502129,1737227438142,-500.0,0.00022465,3]
[349502130,1737227438151,-500.0,0.00022465,3]
[349502132,1737227438161,-246.88,0.00022465,3]
[349502134,1737227438171,-1158.01,0.00022465,3]
[349502135,1737227438180,-500.0,0.00022465,3]
[349502137,1737227438190,-504.55,0.00022465,3]
[349502138,1737227438199,-500.0,0.00022465,3]
[349502140,1737227438209,-3246.54,0.00022465,3]
[349502142,1737227438219,-500.0,0.00022465,3]
[349502143,1737227438229,-500.0,0.00022465,3]
[349502144,1737227438238,-500.0,0.00022465,3]
[349502145,1737227438247,-320.14480378,0.00022521,3]
[349502147,1737227438257,-308.56806462,0.00022602,3]
[349502149,1737227438270,-191.43193538,0.00022602,3]
[349502150,1737227438280,-500.0,0.00022602,3]
[349502151,1737227438291,-500.0,0.00022602,3]
[349502152,1737227438300,-1158.01,0.00022602,3]
[349502153,1737227438310,-500.0,0.00022602,3]
[349502154,1737227438319,-504.55,0.00022602,3]
[349502155,1737227438329,-412.07806462,0.00022602,3]
[349502156,1737227438341,-87.92193538,0.00022602,3]
[349502157,1737227438350,-2329.51782762,0.00022602,3]
[349502158,1737227438388,500.0,0.00023016,120]
[349502159,1737227438453,500.0,0.00023016,120]
[349502160,1737227438496,500.0,0.00023016,120]
[349502161,1737227438547,500.0,0.00023016,120]
[349502162,1737227438592,500.0,0.00023016,120]
[349502163,1737227438623,500.0,0.00023016,120]
[349502164,1737227438656,500.0,0.00023016,120]
[349502169,1737227438938,500.0,0.00023016,120]
[349502170,1737227439050,-917.02217238,0.00022602,3]
[349502171,1737227439061,-500.0,0.00022602,3]
[349502172,1737227439071,-500.0,0.00022602,3]
[349502173,1737227439080,-500.0,0.00022602,3]
[349502174,1737227439091,-320.14480378,0.00022624,3]
[349502175,1737227439102,-1000.0,0.00022712,2]
[349502176,1737227439112,-320.14480378,0.00022728,3]
[349502177,1737227439122,-500.0,0.00022739,3]
[349502178,1737227439132,-314.43,0.00022739,3]
[349502179,1737227439142,-1158.01,0.00022739,3]
[349502181,1737227439151,-500.0,0.00022739,3]
[349502182,1737227439161,-504.55,0.00022739,3]
[349502183,1737227439171,-500.0,0.00022739,3]
[349502184,1737227439181,-3246.54,0.00022739,3]
[349502185,1737227439191,-500.0,0.00022739,3]
[349502186,1737227439200,-500.0,0.00022739,3]
[349502187,1737227439209,-231.16,0.00022739,3]
[349502188,1737227439220,-1000.0,0.00022746,2]
[349502189,1737227439230,-393.326,0.0002281,2]
[349502190,1737227439239,-320.14480378,0.00022831,3]
[349502191,1737227439250,-296.48,0.00022876,3]
[349502192,1737227439262,-1158.01,0.00022876,3]
[349502193,1737227439276,-500.0,0.00022876,3]
[349502194,1737227439286,-504.55,0.00022876,3]
[349502195,1737227439296,-500.0,0.00022876,3]
[349502196,1737227439306,-3246.54,0.00022876,3]
[349502197,1737227439315,-500.0,0.00022876,3]
[349502198,1737227439325,-500.0,0.00022876,3]
[349502199,1737227439334,-846.61635729,0.000229,2]
[349502200,1737227439343,-320.14480378,0.00022934,3]
[349502201,1737227439353,-1000.0,0.00023,23]
[349502202,1737227439363,-1000.0,0.00023,23]
[349502203,1737227439372,-1158.01,0.00023013,3]
[349502204,1737227439382,-500.0,0.00023013,3]
[349502205,1737227439393,-504.55,0.00023013,3]
[349502206,1737227439403,-500.0,0.00023013,3]
[349502207,1737227439412,-151.0,0.00023013,7]
[349502208,1737227439421,-3246.54,0.00023013,3]
[349502209,1737227439430,-500.0,0.00023013,3]
[349502210,1737227439440,-500.0,0.00023013,3]
[349502211,1737227439450,-151.0,0.00023013,7]
[349502212,1737227439460,-151.0,0.00023013,7]
[349502213,1737227439471,-151.0,0.00023013,7]
[349502214,1737227439481,-151.0,0.00023013,7]
[349502215,1737227439492,-320.14480378,0.00023038,3]
[349502216,1737227439502,-320.14480378,0.00023141,3]
[349502217,1737227439512,-1158.01,0.0002315,3]
[349502218,1737227439522,-500.0,0.0002315,3]
[349502219,1737227439532,-504.55,0.0002315,3]
[349502220,1737227439542,-500.0,0.0002315,3]
[349502221,1737227439551,-3246.54,0.0002315,3]
[349502222,1737227439562,-500.0,0.0002315,3]
[349502223,1737227439571,-500.0,0.0002315,3]
[349502224,1737227439581,-150.0,0.0002318,2]
[349502225,1737227439591,-3204.06050739,0.00023226,2]
[349502226,1737227439603,-4666.60544911,0.00023226,2]
[349502227,1737227439613,-320.14480378,0.00023245,3]
[349502228,1737227439623,-1158.01,0.00023287,3]
[349502229,1737227439723,-500.0,0.00023287,3]
[349502230,1737227439733,-504.55,0.00023287,3]
[349502231,1737227439743,-186.76,0.00023287,3]
[349502232,1737227439753,-3246.54,0.00023287,3]
[349502233,1737227439762,-500.0,0.00023287,3]
[349502234,1737227439772,-500.0,0.00023287,3]
[349502235,1737227439782,-320.14480378,0.00023348,3]
[349502236,1737227439791,-13921.95167342,0.00023349,2]
[349502237,1737227439803,-4651.84289612,0.00023349,2]
[349502238,1737227439833,500.0,0.00023016,120]
[349502243,1737227440455,500.0,0.00023016,120]
[349502264,1737227441046,-1601.99624086,0.00023349,2]
[349502265,1737227441057,-2971.09998815,0.00023349,2]
[349502266,1737227441070,-715.3970846,0.00023349,2]
[349502267,1737227441082,-3220.47775371,0.00023349,2]
[349502268,1737227441207,500.0,0.00023016,120]
[349502269,1737227442003,500.0,0.00023016,120]
[349502270,1737227442784,500.0,0.00023016,120]
[349502276,1737227443529,500.0,0.00023016,120]
[349502280,1737227444009,-13696.87382771,0.00023349,2]
[349502281,1737227444021,-23862.1938,0.00023349,2]
[349502282,1737227444036,-2855.62900071,0.00023349,2]
[349502283,1737227444310,500.0,0.00023016,120]
[349502284,1737227445091,500.0,0.00023016,120]
[349502285,1737227445846,500.0,0.00023016,120]
[349502315,1737227446625,500.0,0.00023016,120]
[349502317,1737227446832,-116.53773472,0.00023349,2]
[349502318,1737227446842,-151.0,0.00023349,7]
[349502319,1737227446852,-151.0,0.00023349,7]
[349502320,1737227446862,-151.0,0.00023349,7]
[349502321,1737227446871,-151.0,0.00023349,7]
[349502322,1737227446880,-151.0,0.00023349,7]
[349502323,1737227446893,-1158.01,0.00023424,3]
[349502324,1737227446902,-500.0,0.00023424,3]
[349502325,1737227446912,-504.55,0.00023424,3]
[349502326,1737227446922,-3246.54,0.00023424,3]
[349502327,1737227446932,-500.0,0.00023424,3]
[349502328,1737227446942,-500.0,0.00023424,3]
[349502329,1737227446951,-320.14480378,0.00023452,3]
[349502330,1737227446960,-137642.1527465,0.000235,2]
[349502331,1737227447388,500.0,0.00023016,120]
[349502332,1737227448180,613.56,0.00023016,120]
[349502333,1737227490798,160.0,0.000235,120]
[349502334,1737227550821,160.0,0.00024582,120]
[349502338,1737227790804,160.0,0.0002306,120]
[349502339,1737227850735,160.0,0.0002469,120]
[349502340,1737227910795,160.0,0.00024377,120]
[349502341,1737227971291,160.0,0.00023512,120]
[349502342,1737228030808,160.0,0.00023725,120]
[349502345,1737228090763,160.0,0.0002312,120]
[349502346,1737228151372,160.0,0.00024796,120]
[349502347,1737228210740,160.0,0.00024789,120]
[349502351,1737228330783,160.0,0.00024095,120]
[349502352,1737228334154,161.018539,0.00013973,2]
[349502354,1737228378094,203.999265,0.0002411,120]
[349502355,1737228390523,160.0,0.0002331,120]
[349502357,1737228431104,-244.47426406,0.00019679,2]
[349502358,1737228450795,160.0,0.00024517,120]
[349502361,1737228488038,390.61656435,0.000248,120]
[349502362,1737228493291,434.95372,0.00025,120]
[349502363,1737228496194,1096.01800381,0.0002,120]
[349502364,1737228499436,188.0,0.0002,120]
[349502372,1737228505317,181.34238459,0.00025,120]
[349502373,1737228505389,305.20501384,7e-05,120]
[349502374,1737228505464,547.06317151,0.00025,120]
[349502375,1737228511014,160.0,0.00024336,120]
[349502376,1737228513457,2201.96859507,0.00025,120]
[349502377,1737228513966,1267.54961387,0.0002,120]
[349502378,1737228515192,150.0,2.75e-05,120]
[349502379,1737228516154,1610.5244925,0.00025,120]
[349502380,1737228516217,892.04047235,0.00025,120]
[349502381,1737228518585,985.98843763,0.0002202,120]
[349502384,1737228521519,2101.29367191,0.00025,120]
[349502386,1737228521968,868.07212301,0.00025,120]
[349502391,1737228558105,-300.0,0.00018999,2]
[349502392,1737228558127,-17693.49867287,0.00019,3]
[349502393,1737228558148,-815.10239437,0.00019679,2]
[349502394,1737228570784,160.0,0.00024977,120]
[349502401,1737228630771,160.0,0.00022893,120]
[349502410,1737228632059,-2005.29973004,0.00019878,2]
[349502411,1737228632072,-2448.89123317,0.0002,2]
[349502412,1737228632086,-600.0,0.0002,2]
[349502413,1737228632198,-14022.52553467,0.0002,2]
[349502414,1737228632212,-389.89568935,0.0002,2]
[349502415,1737228632226,-2733.62949502,0.0002,2]
[349502416,1737228632238,-300.0,0.0002018,2]
[349502417,1737228632249,-250.0,0.00020897,2]
[349502418,1737228632262,-173.87145127,0.00021817,2]
[349502420,1737228632274,-500.0,0.00021916,2]
[349502421,1737228632286,-500.0,0.00021916,2]
[349502422,1737228632297,-500.0,0.00021916,2]
[349502423,1737228632310,-650.55210854,0.00021916,2]
[349502424,1737228632320,-500.0,0.00021916,2]
[349502425,1737228632330,-411.27109316,0.00021916,2]
[349502426,1737228632343,-500.0,0.00021916,2]
[349502427,1737228632355,-500.0,0.00021916,2]
[349502428,1737228632367,-500.0,0.00021916,2]
[349502429,1737228632378,-500.0,0.00021916,2]
[349502430,1737228632391,-500.0,0.00021916,2]
[349502431,1737228632403,-500.0,0.00021916,2]
[349502432,1737228632415,-500.0,0.00021916,2]
[349502433,1737228632428,-500.0,0.00021916,2]
[349502434,1737228632440,-500.0,0.00021916,2]
[349502435,1737228632451,-500.0,0.00021916,2]
[349502436,1737228632464,-500.0,0.00021916,2]
[349502437,1737228632477,-500.0,0.00021916,2]
[349502438,1737228632488,-500.0,0.00021916,2]
[349502439,1737228632502,-500.0,0.00021916,2]
[349502440,1737228632514,-500.0,0.00021916,2]
[349502441,1737228632527,-500.0,0.00021916,2]
[349502442,1737228632537,-500.0,0.00021916,2]
[349502443,1737228632548,-488.3721703,0.00021916,2]
[349502444,1737228632558,-500.0,0.00021916,2]
[349502445,1737228632568,-500.0,0.00021916,2]
[349502446,1737228632579,-500.0,0.00021916,2]
[349502447,1737228632590,-500.0,0.00021916,2]
[349502448,1737228632602,-500.0,0.00021916,2]
[349502449,1737228632613,-375.92986151,0.00021916,2]
[349502450,1737228632634,-500.0,0.00021916,2]
[349502451,1737228632647,-500.0,0.00021916,2]
[349502452,1737228632662,-500.0,0.00021916,2]
[349502453,1737228632675,-500.0,0.00021916,2]
[349502454,1737228632687,-604.32278443,0.00021916,2]
[349502455,1737228632699,-500.0,0.00021916,2]
[349502456,1737228632711,-438.70444044,0.00021916,2]
[349502457,1737228632728,-500.0,0.00021916,2]
[349502458,1737228632739,-500.0,0.00021916,2]
[349502459,1737228632751,-500.0,0.00021916,2]
[349502460,1737228632762,-362.13183961,0.00021916,2]
[349502461,1737228632772,-500.0,0.00021916,2]
[349502462,1737228632783,-500.0,0.00021916,2]
[349502463,1737228632793,-500.0,0.00021916,2]
[349502464,1737228632804,-500.0,0.00021916,2]
[349502465,1737228632815,-500.0,0.00021916,2]
[349502466,1737228632827,-500.0,0.00021916,2]
[349502467,1737228632840,-500.0,0.00021916,2]
[349502468,1737228632851,-500.0,0.00021916,2]
[349502469,1737228632863,-155.5,0.00021917,2]
[349502470,1737228632880,-550.92970018,0.00021917,3]
[349502471,1737228632891,-500.0,0.00021917,3]
[349502472,1737228632902,-500.76880027,0.00021917,3]
[349502473,1737228632913,-500.0,0.00021917,3]
[349502474,1737228632923,-547.95570331,0.00021917,3]
[349502475,1737228632933,-595.55232431,0.00021917,3]
[349502476,1737228632944,-500.0,0.00021917,3]
[349502477,1737228632955,-510.15447316,0.00021917,3]
[349502478,1737228632966,-500.0,0.00021917,3]
[349502479,1737228632977,-525.66111575,0.00021917,3]
[349502480,1737228632988,-500.0,0.00021917,3]
[349502481,1737228632999,-500.0,0.00021917,3]
[349502482,1737228633010,-506.01122252,0.00021917,3]
[349502483,1737228633021,-500.0,0.00021917,3]
[349502484,1737228633032,-500.0,0.00021917,3]
[349502485,1737228633043,-500.0,0.00021917,3]
[349502486,1737228633054,-500.0,0.00021917,3]
[349502487,1737228633066,-500.0,0.00021917,3]
[349502488,1737228633077,-500.0,0.00021917,3]
[349502489,1737228633087,-500.0,0.00021917,3]
[349502490,1737228633099,-500.0,0.00021917,3]
[349502491,1737228633110,-478.37586935,0.00021917,3]
[349502492,1737228633124,-500.0,0.00021917,3]
[349502493,1737228633136,-500.0,0.00021917,3]
[349502494,1737228633146,-509.44552675,0.00021917,3]
[349502495,1737228633157,-500.0,0.00021917,3]
[349502496,1737228633168,-500.0,0.00021917,3]
[349502497,1737228633179,-500.0,0.00021917,3]
[349502498,1737228633191,-500.0,0.00021917,3]
[349502499,1737228633201,-500.0,0.00021917,3]
[349502500,1737228633213,-500.0,0.00021917,3]
[349502501,1737228633224,-500.0,0.00021917,3]
[349502502,1737228633234,-500.0,0.00021917,3]
[349502503,1737228633245,-500.0,0.00021917,3]
[349502504,1737228633256,-500.0,0.00021917,3]
[349502505,1737228633267,-200.0,0.00021917,3]
[349502506,1737228633278,-500.0,0.00021917,3]
[349502507,1737228633290,-500.0,0.00021917,3]
[349502508,1737228633449,-500.0,0.00021917,3]
[349502509,1737228633463,-500.0,0.00021917,3]
[349502510,1737228633473,-609.79018352,0.00021917,3]
[349502511,1737228633483,-500.0,0.00021917,3]
[349502512,1737228633493,-500.0,0.00021917,3]
[349502513,1737228633503,-502.20546571,0.00021917,3]
[349502514,1737228633513,-502.3404222,0.00021917,3]
[349502515,1737228633523,-500.0,0.00021917,3]
[349502516,1737228633533,-500.0,0.00021917,3]
[349502517,1737228633544,-500.0,0.00021917,3]
[349502518,1737228633554,-500.0,0.00021917,3]
[349502519,1737228633565,-481.78787578,0.00021917,3]
[349502520,1737228633575,-500.0,0.00021917,3]
[349502521,1737228633586,-500.0,0.00021917,3]
[349502522,1737228633596,-500.0,0.00021917,3]
[349502523,1737228633607,-500.0,0.00021917,3]
[349502524,1737228633619,-500.0,0.00021917,3]
[349502525,1737228633629,-500.0,0.00021917,3]
[349502526,1737228633639,-246.54138012,0.00021917,3]
[349502527,1737228633649,-500.0,0.00021917,3]
[349502528,1737228633660,-500.0,0.00021917,3]
[349502529,1737228633670,-500.0,0.00021917,3]
[349502530,1737228633680,-500.0,0.00021917,2]
[349502531,1737228633690,-513.00022379,0.00021917,3]
[349502532,1737228633701,-212.89967314,0.00021917,3]
[349502533,1737228633711,-500.0,0.00021917,3]
[349502534,1737228633720,-500.0,0.00021917,3]
[349502535,1737228633730,-504.10714261,0.00021917,3]
[349502536,1737228633740,-500.0,0.00021917,3]
[349502537,1737228633749,-178.787,0.00021917,2]
[349502538,1737228633759,-500.0,0.00021917,3]
[349502539,1737228633769,-503.27942746,0.00021917,3]
[349502540,1737228633779,-500.0,0.00021917,3]
[349502541,1737228633790,-500.0,0.00021917,3]
[349502542,1737228633800,-500.0,0.00021917,3]
[349502543,1737228633810,-500.0,0.00021917,3]
[349502544,1737228633820,-168.88708139,0.00021917,3]
[349502545,1737228633830,-500.0,0.00021917,3]
[349502546,1737228633840,-500.0,0.00021917,3]
[349502547,1737228633850,-558.42,0.00021917,3]
[349502548,1737228633860,-500.0,0.00021917,3]
[349502549,1737228633873,-508.0536812,0.00021917,3]
[349502550,1737228633883,-500.0,0.00021917,3]
[349502551,1737228633892,-500.0,0.00021917,3]
[349502552,1737228633902,-500.0,0.00021917,3]
[349502553,1737228633912,-288.63080699,0.00021917,3]
[349502554,1737228633921,-500.0,0.00021917,3]
[349502555,1737228633931,-481.49126444,0.00021917,3]
[349502556,1737228633940,-500.0,0.00021917,3]
[349502557,1737228633950,-500.0,0.00021917,3]
[349502558,1737228633959,-500.0,0.00021917,3]
[349502559,1737228633969,-500.0,0.00021917,3]
[349502560,1737228633979,-500.0,0.00021917,3]
[349502561,1737228633989,-500.0,0.00021917,3]
[349502562,1737228633998,-500.0,0.00021917,3]
[349502563,1737228634009,-500.0,0.00021917,3]
[349502564,1737228634019,-500.0,0.00021917,3]
[349502565,1737228634028,-503.26640427,0.00021917,3]
[349502566,1737228634038,-500.0,0.00021917,3]
[349502567,1737228634048,-500.0,0.00021917,3]
[349502568,1737228634057,-500.0,0.00021917,3]
[349502569,1737228634066,-500.0,0.00021917,3]
[349502570,1737228634075,-500.0,0.00021917,3]
[349502571,1737228634084,-500.0,0.00021917,3]
[349502572,1737228634094,-500.0,0.00021917,3]
[349502573,1737228634103,-500.0,0.00021917,3]
[349502574,1737228634112,-500.0,0.00021917,3]
[349502575,1737228634124,-500.0,0.00021917,3]
[349502576,1737228634133,-500.0,0.00021917,3]
[349502577,1737228634144,-500.0,0.00021917,3]
[349502578,1737228634154,-500.0,0.00021917,3]
[349502579,1737228634163,-500.0,0.00021917,3]
[349502580,1737228634173,-503.25745211,0.00021917,3]
[349502581,1737228634183,-502.34904473,0.00021917,3]
[349502582,1737228634192,-555.3251714,0.00021917,3]
[349502583,1737228634202,-500.0,0.00021917,3]
[349502584,1737228634212,-500.0,0.00021917,3]
[349502585,1737228634222,-500.0,0.00021917,3]
[349502586,1737228634233,-500.0,0.00021917,3]
[349502587,1737228634243,-504.25810549,0.00021917,3]
[349502588,1737228634252,-500.0,0.00021917,3]
[349502589,1737228634261,-500.0,0.00021917,3]
[349502590,1737228634271,-500.0,0.00021917,3]
[349502591,1737228634281,-500.0,0.00021917,3]
[349502592,1737228634291,-500.0,0.00021917,3]
[349502593,1737228634301,-500.0,0.00021917,3]
[349502594,1737228634311,-500.0,0.00021917,3]
[349502595,1737228634322,-500.0,0.00021917,3]
[349502596,1737228634332,-500.0,0.00021917,3]
[349502597,1737228634344,-500.0,0.00021917,3]
[349502598,1737228634355,-500.0,0.00021917,3]
[349502599,1737228634366,-500.0,0.00021917,3]
[349502600,1737228634377,-500.0,0.00021917,3]
[349502601,1737228634387,-501.79525196,0.00021917,3]
[349502602,1737228634397,-500.0,0.00021917,3]
[349502603,1737228634407,-500.0,0.00021917,3]
[349502604,1737228634417,-501.67666518,0.00021917,3]
[349502605,1737228634427,-501.73151904,0.00021917,3]
[349502606,1737228634437,-500.0,0.00021917,3]
[349502607,1737228634446,-500.0,0.00021917,3]
[349502608,1737228634456,-500.0,0.00021917,3]
[349502609,1737228634465,-500.0,0.00021917,3]
[349502610,1737228634475,-500.0,0.00021917,3]
[349502611,1737228634485,-500.0,0.00021917,3]
[349502612,1737228634494,-500.0,0.00021917,3]
[349502613,1737228634504,-500.0,0.00021917,3]
[349502614,1737228634514,-500.0,0.00021917,3]
[349502615,1737228634524,-500.0,0.00021917,3]
[349502616,1737228634534,-502.03087605,0.00021917,3]
[349502617,1737228634544,-500.0,0.00021917,3]
[349502618,1737228634553,-500.0,0.00021917,3]
[349502619,1737228634563,-500.0,0.00021917,3]
[349502620,1737228634572,-500.0,0.00021917,3]
[349502621,1737228634582,-502.69743449,0.00021917,3]
[349502622,1737228634592,-500.0,0.00021917,3]
[349502623,1737228634602,-500.0,0.00021917,3]
[349502624,1737228634611,-500.0,0.00021917,3]
[349502625,1737228634623,-500.0,0.00021917,3]
[349502626,1737228634632,-500.0,0.00021917,3]
[349502627,1737228634642,-500.0,0.00021917,3]
[349502628,1737228634651,-500.0,0.00021917,3]
[349502629,1737228634661,-500.0,0.00021917,3]
[349502630,1737228634671,-500.0,0.00021917,3]
[349502631,1737228634681,-500.0,0.00021917,3]
[349502632,1737228634690,-500.0,0.00021917,3]
[349502633,1737228634701,-500.0,0.00021917,3]
[349502634,1737228634710,-500.0,0.00021917,3]
[349502635,1737228634720,-500.0,0.00021917,3]
[349502636,1737228634729,-513.00256494,0.00021917,3]
[349502637,1737228634739,-500.0,0.00021917,3]
[349502638,1737228634748,-500.0,0.00021917,3]
[349502639,1737228634758,-500.0,0.00021917,3]
[349502640,1737228634767,-500.0,0.00021917,3]
[349502641,1737228634777,-500.0,0.00021917,3]
[349502642,1737228634787,-510.64168644,0.00021917,3]
[349502643,1737228634796,-500.0,0.00021917,3]
[349502644,1737228634806,-308.53507303,0.00021917,3]
[349502645,1737228634815,-500.0,0.00021917,3]
[349502646,1737228634825,-500.0,0.00021917,3]
[349502647,1737228634834,-500.0,0.00021917,3]
[349502648,1737228634844,-500.0,0.00021917,3]
[349502649,1737228634854,-500.0,0.00021917,3]
[349502650,1737228634865,-500.0,0.00021917,3]
[349502651,1737228634876,-500.0,0.00021917,3]
[349502652,1737228634885,-500.0,0.00021917,3]
[349502653,1737228634895,-500.0,0.00021917,3]
[349502654,1737228634905,-500.0,0.00021917,3]
[349502655,1737228634915,-527.50449734,0.00021917,3]